fUSD/lending_fUSD_20250720
["ID","MTS","AMOUNT","RATE_DAILY","PERIOD"]
[373447745,1753013471961,-480.0,0.00019397,2]
[373447746,1753013471970,-1723.5,0.00019397,2]
[373447747,1753013471979,-1015.04,0.00019397,2]
[373447748,1753013471988,-1539.49,0.00019397,2]
[373447749,1753013471998,-480.0,0.00019397,2]
[373447750,1753013472007,-813.68,0.00019397,2]
[373447751,1753013472017,-1361.52,0.00019397,2]
[373447752,1753013472027,-1434.25,0.00019397,2]
[373447753,1753013472037,-480.0,0.00019397,2]
[373447754,1753013472047,-480.0,0.00019397,2]
[373447755,1753013472057,-6436.22,0.00019397,2]
[373447756,1753013472067,-480.0,0.00019397,2]
[373447757,1753013472076,-1549.35,0.00019397,2]
[373447758,1753013472086,-1003.73,0.00019397,2]
[373447759,1753013472095,-2525.33,0.00019397,2]
[373447760,1753013472105,-1508.86,0.00019397,2]
[373447761,1753013472114,-480.0,0.00019397,2]
[373447762,1753013472123,-717.59,0.00019397,2]
[373447763,1753013472132,-1095.0,0.00019397,2]
[373447764,1753013472142,-2638.56,0.00019397,2]
[373447765,1753013472151,-1701.08,0.00019397,2]
[373447766,1753013472160,-643.579262,0.00019397,2]
[373447767,1753013472169,-643.579262,0.00019397,2]
[373447768,1753013472178,-1222.94,0.00019397,2]
[373447769,1753013472188,-619.46,0.00019397,2]
[373447770,1753013472197,-480.0,0.00019397,2]
[373447771,1753013472207,-905.54,0.00019397,2]
[373447772,1753013472217,-1715.41,0.00019397,2]
[373447773,1753013472229,-327.15189543,0.00019397,2]
[373447774,1753013472239,-643.579262,0.00019397,2]
[373447775,1753013472249,-643.579262,0.00019397,2]
[373447776,1753013472259,-480.0,0.00019397,2]
[373447777,1753013472268,-154.53877,0.00019397,2]
[373447778,1753013472278,-3688.76,0.00019397,2]
[373447779,1753013472287,-2526.18,0.00019397,2]
[373447780,1753013472297,-1135.56,0.00019397,2]
[373447781,1753013472306,-1150.34,0.00019397,2]
[373447782,1753013472315,-2906.2,0.00019397,2]
[373447783,1753013472325,-480.0,0.00019397,2]
[373447784,1753013472334,-279.38531166,0.00019397,2]
[373447785,1753013472345,-480.0,0.00019397,2]
[373447786,1753013472354,-1674.29,0.00019397,2]
[373447787,1753013472364,-533.04,0.00019397,2]
[373447788,1753013472373,-480.0,0.00019397,2]
[373447789,1753013472383,-433.64425886,0.00019397,2]
[373447790,1753013472393,-2332.93,0.00019397,2]
[373447791,1753013472402,-454.13,0.00019397,2]
[373447792,1753013472411,-465.97273398,0.00019397,2]
[373447793,1753013472420,-755.65,0.00019397,2]
[373447794,1753013472430,-5397.35,0.00019397,2]
[373447795,1753013472440,-1951.81,0.00019397,2]
[373447796,1753013472449,-480.0,0.00019397,2]
[373447797,1753013472458,-470.47581337,0.00019397,2]
[373447798,1753013472467,-1566.95,0.00019397,2]
[373447799,1753013472476,-1606.18,0.00019397,2]
[373447800,1753013472486,-480.0,0.00019397,2]
[373447801,1753013472495,-464.11794525,0.00019397,2]
[373447802,1753013472504,-3089.34,0.00019397,2]
[373447803,1753013472513,-811.76,0.00019397,2]
[373447804,1753013472523,-242.0,0.00019397,2]
[373447805,1753013472532,-503.58,0.00019399,2]
[373447806,1753013472541,-74645.70585302,0.000194,2]
[373447807,1753013472551,-165.94475,0.000194,2]
[373447808,1753013472560,-151.0,0.000194,2]
[373447809,1753013472569,-249.699544,0.000194,2]
[373447810,1753013472579,-249.699544,0.000194,2]
[373447811,1753013472588,-1670.752502,0.000194,2]
[373447812,1753013472598,-1670.752502,0.000194,2]
[373447813,1753013472607,-150.0,0.000194,2]
[373447814,1753013472617,-714.92,0.000194,2]
[373447815,1753013472626,-1174.93,0.000194,2]
[373447816,1753013472635,-372.12944455,0.000194,4]
[373447817,1753013472645,-372.12944455,0.000194,4]
[373447818,1753013472657,-372.12944455,0.000194,4]
[373447819,1753013472667,-372.12944455,0.000194,4]
[373447820,1753013472677,-372.12944455,0.000194,4]
[373447821,1753013472686,-372.12944455,0.000194,4]
[373447822,1753013472695,-372.12944455,0.000194,4]
[373447823,1753013472705,-372.12944455,0.000194,4]
[373447824,1753013472715,-372.12944455,0.000194,4]
[373447825,1753013472724,-372.12944455,0.000194,4]
[373447826,1753013472733,-372.12944455,0.000194,4]
[373447827,1753013472743,-372.12944455,0.000194,4]
[373447828,1753013472752,-372.12944455,0.000194,4]
[373447829,1753013472762,-372.12944455,0.000194,4]
[373447830,1753013472771,-372.12944455,0.000194,4]
[373447831,1753013472780,-372.12944455,0.000194,4]
[373447832,1753013472790,-372.12944455,0.000194,4]
[373447833,1753013472799,-372.12944455,0.000194,4]
[373447834,1753013472986,-372.12944455,0.000194,4]
[373447835,1753013472996,-372.12,0.000194,4]
[373447836,1753013473006,-285.01803398,0.000194,4]
[373447837,1753013473015,-285.01803398,0.000194,4]
[373447838,1753013473025,-285.01803398,0.000194,4]
[373447839,1753013473038,-285.01803398,0.000194,4]
[373447840,1753013473050,-285.01803398,0.000194,4]
[373447841,1753013473059,-285.01803398,0.000194,4]
[373447842,1753013473069,-285.01803398,0.000194,4]
[373447843,1753013473080,-285.01803398,0.000194,4]
[373447844,1753013473090,-285.01803398,0.000194,4]
[373447845,1753013473099,-285.01803398,0.000194,4]
[373447846,1753013473108,-285.01803398,0.000194,4]
[373447847,1753013473117,-285.01803398,0.000194,4]
[373447848,1753013473127,-285.01803398,0.000194,4]
[373447849,1753013473136,-285.01803398,0.000194,4]
[373447850,1753013473146,-285.01803398,0.000194,4]
[373447851,1753013473164,-285.01803398,0.000194,4]
[373447852,1753013473173,-285.01803398,0.000194,4]
[373447853,1753013473182,-285.01803398,0.000194,4]
[373447854,1753013473192,-285.01803398,0.000194,4]
[373447855,1753013473201,-285.01,0.000194,4]
[373447856,1753013473211,-159.305545,0.000194,2]
[373447857,1753013473224,-461.58973987,0.000194,4]
[373447858,1753013473233,-159.305545,0.000194,2]
[373447859,1753013473243,-461.58973987,0.000194,4]
[373447860,1753013473253,-344.983284,0.000194,2]
[373447861,1753013473265,-461.58973987,0.000194,4]
[373447862,1753013473274,-461.58973987,0.000194,4]
[373447863,1753013473284,-461.58973987,0.000194,4]
[373447864,1753013473293,-461.58973987,0.000194,4]
[373447865,1753013473303,-461.58973987,0.000194,4]
[373447866,1753013473313,-461.58973987,0.000194,4]
[373447867,1753013473323,-461.58973987,0.000194,4]
[373447868,1753013473332,-461.58973987,0.000194,4]
[373447869,1753013473342,-461.58973987,0.000194,4]
[373447870,1753013473352,-461.58973987,0.000194,4]
[373447871,1753013473362,-461.58973987,0.000194,4]
[373447872,1753013473372,-461.58973987,0.000194,4]
[373447873,1753013473381,-461.58973987,0.000194,4]
[373447874,1753013473391,-461.58973987,0.000194,4]
[373447875,1753013473401,-461.58973987,0.000194,4]
[373447876,1753013473411,-461.58973987,0.000194,4]
[373447877,1753013473421,-461.58973987,0.000194,4]
[373447878,1753013473431,-461.58,0.000194,4]
[373447879,1753013473440,-150.0,0.00019401,2]
[373447880,1753013473450,-168.0,0.00019409,2]
[373447881,1753013473459,-242.0,0.00019417,2]
[373447882,1753013473469,-302.65,0.00019426,2]
[373447883,1753013473478,-11154.93801766,0.00019429,7]
[373447884,1753013473488,-476.8747822,0.00019429,7]
[373447885,1753013473497,-210.86573235,0.00019429,7]
[373447886,1753013473508,-242.0,0.00019434,2]
[373447887,1753013473517,-310.46491208,0.00019438,2]
[373447888,1753013473526,-1644.26787085,0.00019472,2]
[373447889,1753013473536,-242.0,0.00019474,2]
[373447890,1753013473546,-934.38,0.00019491,2]
[373447891,1753013473555,-480.0,0.00019491,2]
[373447892,1753013473564,-357.40031093,0.00019491,2]
[373447893,1753013473574,-371.58014286,0.00019491,2]
[373447894,1753013473583,-151.0,0.00019491,2]
[373447895,1753013473595,-291.946926,0.00019491,2]
[373447896,1753013473604,-291.946926,0.00019491,2]
[373447897,1753013473614,-2463.23,0.00019491,2]
[373447898,1753013473626,-5095.48,0.00019491,2]
[373447899,1753013473636,-1204.94,0.00019491,2]
[373447900,1753013473646,-480.0,0.00019491,2]
[373447901,1753013473656,-1452.33,0.00019491,2]
[373447902,1753013473665,-1051.97,0.00019491,2]
[373447903,1753013473675,-1724.16,0.00019491,2]
[373447904,1753013473685,-541.23,0.00019491,2]
[373447905,1753013473694,-300.0,0.00019499,2]
[373447906,1753013473704,-503.58,0.00019499,2]
[373447907,1753013473713,-4380.94,0.00019499,2]
[373447908,1753013473723,-4380.94,0.00019499,2]
[373447909,1753013473732,-500.0,0.00019499,2]
[373447910,1753013473742,-500.0,0.00019499,2]
[373447911,1753013473751,-500.0,0.00019499,2]
[373447912,1753013473761,-500.0,0.00019499,2]
[373447913,1753013473771,-28750.28663777,0.000195,2]
[373447914,1753013473780,-391074.0,0.000195,2]
[373447915,1753013473790,-290.962624,0.000195,2]
[373447916,1753013473800,-151.0,0.000195,2]
[373447917,1753013473809,-151.0,0.000195,2]
[373447918,1753013473819,-151.0,0.000195,2]
[373447919,1753013473828,-151.0,0.000195,2]
[373447920,1753013473837,-151.0,0.000195,2]
[373447921,1753013473849,-151.0,0.000195,2]
[373447922,1753013473858,-151.0,0.000195,2]
[373447923,1753013473867,-151.0,0.000195,2]
[373447924,1753013473877,-151.0,0.000195,2]
[373447925,1753013473886,-151.0,0.000195,2]
[373447926,1753013473895,-151.0,0.000195,2]
[373447927,1753013473905,-151.0,0.000195,2]
[373447928,1753013473914,-151.0,0.000195,2]
[373447929,1753013473923,-151.0,0.000195,2]
[373447930,1753013473933,-151.0,0.000195,2]
[373447931,1753013473943,-151.0,0.000195,2]
[373447932,1753013473953,-151.0,0.000195,2]
[373447933,1753013473963,-151.0,0.000195,2]
[373447934,1753013473972,-151.0,0.000195,2]
[373447935,1753013473982,-151.0,0.000195,2]
[373447936,1753013473991,-151.0,0.000195,2]
[373447937,1753013474000,-151.0,0.000195,2]
[373447938,1753013474010,-177.164246,0.000195,2]
[373447939,1753013474019,-177.164246,0.000195,2]
[373447940,1753013474029,-151.0,0.000195,2]
[373447941,1753013474038,-291.946926,0.000195,2]
[373447942,1753013474048,-291.946926,0.000195,2]
[373447943,1753013474058,-1244.587968,0.000195,2]
[373447944,1753013474068,-249.699544,0.000195,2]
[373447945,1753013474077,-1244.587968,0.000195,2]
[373447946,1753013474087,-249.699544,0.000195,2]
[373447947,1753013474098,-151.0,0.000195,2]
[373447948,1753013474108,-151.0,0.000195,2]
[373447949,1753013474117,-151.0,0.000195,2]
[373447950,1753013474127,-378.055051,0.000195,2]
[373447951,1753013474136,-378.055051,0.000195,2]
[373447952,1753013474146,-1000.0,0.000195,2]
[373447953,1753013474156,-184.848733,0.000195,2]
[373447954,1753013474166,-184.848733,0.000195,2]
[373447955,1753013474175,-1670.752502,0.000195,2]
[373447956,1753013474185,-151.0,0.000195,2]
[373447957,1753013474194,-1670.752502,0.000195,2]
[373447958,1753013474204,-290.728252,0.000195,2]
[373447959,1753013474215,-151.0,0.000195,2]
[373447960,1753013474230,-151.0,0.000195,2]
[373447961,1753013474241,-151.0,0.000195,2]
[373447962,1753013474251,-243.62697,0.000195,2]
[373447963,1753013474261,-151.0,0.000195,2]
[373447964,1753013474271,-151.0,0.000195,2]
[373447965,1753013474280,-151.0,0.000195,2]
[373447966,1753013474289,-151.0,0.000195,2]
[373447967,1753013474301,-151.0,0.000195,2]
[373447968,1753013474311,-151.0,0.000195,2]
[373447969,1753013474320,-151.0,0.000195,2]
[373447970,1753013474330,-151.0,0.000195,2]
[373447971,1753013474339,-153.729052,0.000195,2]
[373447972,1753013474349,-284.907704,0.000195,2]
[373447973,1753013474359,-159.305545,0.000195,2]
[373447974,1753013474368,-159.305545,0.000195,2]
[373447975,1753013474377,-344.98328396,0.000195,2]
[373447976,1753013474387,-151.0,0.000195,2]
[373447977,1753013474396,-643.579262,0.000195,2]
[373447978,1753013474405,-643.579262,0.000195,2]
[373447979,1753013474414,-300.0,0.00019505,2]
[373447980,1753013474423,-151.0,0.00019505,2]
[373447981,1753013474432,-151.0,0.00019505,2]
[373447982,1753013474441,-177.164246,0.00019505,2]
[373447983,1753013474451,-177.164246,0.00019505,2]
[373447984,1753013474460,-151.0,0.00019505,2]
[373447985,1753013474470,-503.58,0.00019505,2]
[373447986,1753013474479,-503.58,0.00019505,2]
[373447987,1753013474489,-503.58,0.00019505,2]
[373447988,1753013474498,-503.58,0.00019505,2]
[373447989,1753013474510,-503.58,0.00019505,2]
[373447990,1753013474519,-503.58,0.00019505,2]
[373447991,1753013474528,-503.58,0.00019505,2]
[373447992,1753013474538,-503.65417623,0.00019505,2]
[373447993,1753013474547,-151.0,0.00019505,2]
[373447994,1753013474557,-251.558944,0.00019505,2]
[373447995,1753013474567,-378.055051,0.00019505,2]
[373447996,1753013474576,-378.055051,0.00019505,2]
[373447997,1753013474585,-4380.94,0.00019505,2]
[373447998,1753013474595,-4380.94,0.00019505,2]
[373447999,1753013474605,-4380.94,0.00019505,2]
[373448000,1753013474614,-4380.94,0.00019505,2]
[373448001,1753013474623,-4380.94,0.00019505,2]
[373448002,1753013474632,-4380.94,0.00019505,2]
[373448003,1753013474642,-4380.94,0.00019505,2]
[373448004,1753013474651,-4380.99200589,0.00019505,2]
[373448005,1753013474660,-184.848733,0.00019505,2]
[373448006,1753013474669,-184.848733,0.00019505,2]
[373448007,1753013474679,-151.0,0.00019505,2]
[373448008,1753013474688,-151.0,0.00019505,2]
[373448009,1753013474698,-151.0,0.00019505,2]
[373448010,1753013474707,-151.0,0.00019505,2]
[373448011,1753013474716,-500.0,0.00019505,2]
[373448012,1753013474726,-500.0,0.00019505,2]
[373448013,1753013474735,-500.0,0.00019505,2]
[373448014,1753013474744,-500.0,0.00019505,2]
[373448015,1753013474753,-440.83459413,0.00019505,2]
[373448016,1753013474762,-151.0,0.00019505,2]
[373448017,1753013474772,-500.0,0.00019505,2]
[373448018,1753013474782,-500.0,0.00019505,2]
[373448019,1753013474791,-643.579262,0.00019505,2]
[373448020,1753013474801,-643.579262,0.00019505,2]
[373448021,1753013474810,-509.48395072,0.00019506,2]
[373448022,1753013474819,-480.0,0.00019506,2]
[373448023,1753013474829,-379.92277788,0.00019506,2]
[373448024,1753013474838,-151.0,0.00019506,2]
[373448025,1753013474851,-480.0,0.00019506,2]
[373448026,1753013474860,-480.0,0.00019506,2]
[373448027,1753013474870,-480.0,0.00019506,2]
[373448028,1753013474880,-480.0,0.00019506,2]
[373448029,1753013474890,-151.0,0.00019506,2]
[373448030,1753013474899,-151.0,0.00019506,2]
[373448031,1753013474909,-480.0,0.00019506,2]
[373448032,1753013474918,-528.17,0.00019506,2]
[373448033,1753013474928,-480.0,0.00019506,2]
[373448034,1753013474939,-480.0,0.00019506,2]
[373448035,1753013474949,-151.0,0.00019506,2]
[373448036,1753013474962,-151.0,0.00019506,2]
[373448037,1753013474971,-480.0,0.00019506,2]
[373448038,1753013474981,-480.0,0.00019506,2]
[373448039,1753013474990,-151.0,0.00019506,2]
[373448040,1753013474999,-151.0,0.00019506,2]
[373448041,1753013475009,-768.09,0.00019506,2]
[373448042,1753013475019,-480.0,0.00019506,2]
[373448043,1753013475028,-480.0,0.00019506,2]
[373448044,1753013475038,-480.0,0.00019506,2]
[373448045,1753013475047,-480.0,0.00019506,2]
[373448046,1753013475056,-480.0,0.00019506,2]
[373448047,1753013475066,-480.0,0.00019506,2]
[373448048,1753013475076,-151.0,0.00019506,2]
[373448049,1753013475086,-480.0,0.00019506,2]
[373448050,1753013475096,-183.22860816,0.00019506,2]
[373448051,1753013475106,-345.37399285,0.00019506,2]
[373448052,1753013475115,-480.0,0.00019506,2]
[373448053,1753013475125,-480.0,0.00019506,2]
[373448054,1753013475135,-480.0,0.00019506,2]
[373448055,1753013475144,-480.0,0.00019506,2]
[373448056,1753013475153,-151.0,0.00019506,2]
[373448057,1753013475162,-151.0,0.00019506,2]
[373448058,1753013475171,-480.0,0.00019506,2]
[373448059,1753013475180,-480.0,0.00019506,2]
[373448060,1753013475190,-480.0,0.00019506,2]
[373448061,1753013475199,-151.0,0.00019506,2]
[373448062,1753013475208,-717.14,0.00019506,2]
[373448063,1753013475218,-594.74776746,0.00019506,2]
[373448064,1753013475231,-412.39348857,0.00019506,2]
[373448065,1753013475241,-480.0,0.00019506,2]
[373448066,1753013475250,-514.87,0.00019506,2]
[373448067,1753013475260,-151.0,0.00019506,2]
[373448068,1753013475270,-480.0,0.00019506,2]
[373448069,1753013475279,-151.713389,0.00019506,2]
[373448070,1753013475289,-480.0,0.00019506,2]
[373448071,1753013475298,-500.0,0.00019506,2]
[373448072,1753013475307,-3843.99,0.00019506,2]
[373448073,1753013475318,-480.0,0.00019506,2]
[373448074,1753013475327,-539.15,0.00019506,2]
[373448075,1753013475336,-621.29,0.00019506,2]
[373448076,1753013475347,-480.0,0.00019506,2]
[373448077,1753013475357,-1523.74,0.00019506,2]
[373448078,1753013475366,-480.0,0.00019506,2]
[373448079,1753013475375,-480.0,0.00019506,2]
[373448080,1753013475385,-151.0,0.00019506,2]
[373448081,1753013475394,-480.0,0.00019506,2]
[373448082,1753013475404,-480.0,0.00019506,2]
[373448083,1753013475413,-1042.47,0.00019506,2]
[373448084,1753013475422,-480.0,0.00019506,2]
[373448085,1753013475431,-480.0,0.00019506,2]
[373448086,1753013475440,-702.1,0.00019506,2]
[373448087,1753013475450,-151.0,0.00019506,2]
[373448088,1753013475459,-772.87,0.00019506,2]
[373448089,1753013475468,-268.203012,0.00019506,2]
[373448090,1753013475477,-480.0,0.00019506,2]
[373448091,1753013475486,-910.08,0.00019506,2]
[373448092,1753013475496,-2302.17,0.00019506,2]
[373448093,1753013475505,-480.0,0.00019506,2]
[373448094,1753013475514,-151.0,0.00019506,2]
[373448095,1753013475523,-480.0,0.00019506,2]
[373448096,1753013475532,-480.0,0.00019506,2]
[373448097,1753013475542,-480.0,0.00019506,2]
[373448098,1753013475551,-778.06,0.00019506,2]
[373448099,1753013475562,-555.99,0.00019506,2]
[373448100,1753013475571,-480.0,0.00019506,2]
[373448101,1753013475581,-151.0,0.00019506,2]
[373448102,1753013475590,-480.0,0.00019506,2]
[373448103,1753013475600,-151.0,0.00019506,2]
[373448104,1753013475609,-500.02,0.00019506,2]
[373448105,1753013475618,-480.0,0.00019506,2]
[373448106,1753013475628,-480.0,0.00019506,2]
[373448107,1753013475637,-480.0,0.00019506,2]
[373448108,1753013475646,-480.0,0.00019506,2]
[373448109,1753013475656,-1104.39,0.00019506,2]
[373448110,1753013475665,-480.0,0.00019506,2]
[373448111,1753013475674,-688.87,0.00019506,2]
[373448112,1753013475684,-908.18,0.00019506,2]
[373448113,1753013475693,-480.0,0.00019506,2]
[373448114,1753013475702,-480.0,0.00019506,2]
[373448115,1753013475711,-480.0,0.00019506,2]
[373448116,1753013475721,-480.0,0.00019506,2]
[373448117,1753013475730,-770.75,0.00019506,2]
[373448118,1753013475741,-480.0,0.00019506,2]
[373448119,1753013475752,-480.0,0.00019506,2]
[373448120,1753013475763,-193.24896757,0.00019506,2]
[373448121,1753013475773,-690.41,0.00019506,2]
[373448122,1753013475782,-480.0,0.00019506,2]
[373448123,1753013475791,-480.0,0.00019506,2]
[373448124,1753013475800,-480.0,0.00019506,2]
[373448125,1753013475810,-490.06,0.00019506,2]
[373448126,1753013475819,-554.27,0.00019506,2]
[373448127,1753013475829,-151.0,0.00019506,2]
[373448128,1753013475838,-285.3671816,0.00019506,2]
[373448129,1753013475851,-711.83,0.00019506,2]
[373448130,1753013475860,-665.57,0.00019506,2]
[373448131,1753013475870,-480.0,0.00019506,2]
[373448132,1753013475881,-480.0,0.00019506,2]
[373448133,1753013475891,-480.0,0.00019506,2]
[373448134,1753013475902,-231.15000977,0.00019506,2]
[373448135,1753013475913,-480.0,0.00019506,2]
[373448136,1753013475923,-480.0,0.00019506,2]
[373448137,1753013475934,-559.66,0.00019506,2]
[373448138,1753013475944,-480.0,0.00019506,2]
[373448139,1753013475955,-480.0,0.00019506,2]
[373448140,1753013475965,-151.0,0.00019506,2]
[373448141,1753013475975,-1059.97,0.00019506,2]
[373448142,1753013475985,-480.0,0.00019506,2]
[373448143,1753013475995,-480.0,0.00019506,2]
[373448144,1753013476005,-480.0,0.00019506,2]
[373448145,1753013476016,-480.0,0.00019506,2]
[373448146,1753013476026,-480.0,0.00019506,2]
[373448147,1753013476036,-537.05,0.00019506,2]
[373448148,1753013476047,-480.0,0.00019506,2]
[373448149,1753013476057,-480.0,0.00019506,2]
[373448150,1753013476067,-480.0,0.00019506,2]
[373448151,1753013476076,-480.0,0.00019506,2]
[373448152,1753013476086,-480.0,0.00019506,2]
[373448153,1753013476097,-527.25,0.00019506,2]
[373448154,1753013476107,-480.0,0.00019506,2]
[373448155,1753013476116,-480.0,0.00019506,2]
[373448156,1753013476126,-480.0,0.00019506,2]
[373448157,1753013476135,-480.0,0.00019506,2]
[373448158,1753013476318,-1151.96,0.00019506,2]
[373448159,1753013476328,-517.41301621,0.00019506,2]
[373448160,1753013476340,-480.0,0.00019506,2]
[373448161,1753013476349,-480.0,0.00019506,2]
[373448162,1753013476358,-480.0,0.00019506,2]
[373448163,1753013476367,-480.0,0.00019506,2]
[373448164,1753013476376,-480.0,0.00019506,2]
[373448165,1753013476386,-177.164246,0.00019506,2]
[373448166,1753013476395,-917.78,0.00019506,2]
[373448167,1753013476405,-480.0,0.00019506,2]
[373448168,1753013476414,-177.164246,0.00019506,2]
[373448169,1753013476423,-236.89586757,0.00019506,2]
[373448170,1753013476432,-480.0,0.00019506,2]
[373448171,1753013476441,-480.0,0.00019506,2]
[373448172,1753013476451,-688.83,0.00019506,2]
[373448173,1753013476460,-480.0,0.00019506,2]
[373448174,1753013476469,-1080.81,0.00019506,2]
[373448175,1753013476479,-480.0,0.00019506,2]
[373448176,1753013476488,-1028.71,0.00019506,2]
[373448177,1753013476497,-899.52,0.00019506,2]
[373448178,1753013476507,-480.0,0.00019506,2]
[373448179,1753013476516,-480.0,0.00019506,2]
[373448180,1753013476526,-480.0,0.00019506,2]
[373448181,1753013476536,-480.0,0.00019506,2]
[373448182,1753013476545,-480.0,0.00019506,2]
[373448183,1753013476554,-480.0,0.00019506,2]
[373448184,1753013476564,-480.0,0.00019506,2]
[373448185,1753013476574,-828.24,0.00019506,2]
[373448186,1753013476583,-1143.47,0.00019506,2]
[373448187,1753013476594,-707.39,0.00019506,2]
[373448188,1753013476604,-480.0,0.00019506,2]
[373448189,1753013476613,-480.0,0.00019506,2]
[373448190,1753013476623,-480.0,0.00019506,2]
[373448191,1753013476633,-151.0,0.00019506,2]
[373448192,1753013476642,-672.05,0.00019506,2]
[373448193,1753013476652,-967.39,0.00019506,2]
[373448194,1753013476661,-562.11,0.00019506,2]
[373448195,1753013476670,-333.40022074,0.00019506,2]
[373448196,1753013476679,-497.81,0.00019506,2]
[373448197,1753013476689,-480.0,0.00019506,2]
[373448198,1753013476698,-567.66604981,0.00019506,2]
[373448199,1753013476707,-659.85,0.00019506,2]
[373448200,1753013476717,-480.0,0.00019506,2]
[373448201,1753013476726,-480.0,0.00019506,2]
[373448202,1753013476736,-245.7300817,0.00019506,2]
[373448203,1753013476744,-480.0,0.00019506,2]
[373448204,1753013476753,-480.0,0.00019506,2]
[373448205,1753013476762,-1469.92,0.00019506,2]
[373448206,1753013476771,-480.0,0.00019506,2]
[373448207,1753013476781,-480.0,0.00019506,2]
[373448208,1753013476790,-480.0,0.00019506,2]
[373448209,1753013476799,-1978.4,0.00019506,2]
[373448210,1753013476808,-480.0,0.00019506,2]
[373448211,1753013476817,-480.0,0.00019506,2]
[373448212,1753013476826,-480.0,0.00019506,2]
[373448213,1753013476835,-480.0,0.00019506,2]
[373448214,1753013476846,-480.0,0.00019506,2]
[373448215,1753013476855,-480.0,0.00019506,2]
[373448216,1753013476864,-480.0,0.00019506,2]
[373448217,1753013476873,-480.0,0.00019506,2]
[373448218,1753013476883,-480.0,0.00019506,2]
[373448219,1753013476893,-773.9,0.00019506,2]
[373448220,1753013476902,-480.0,0.00019506,2]
[373448221,1753013476912,-539.88,0.00019506,2]
[373448222,1753013476922,-291.946926,0.00019506,2]
[373448223,1753013476931,-480.0,0.00019506,2]
[373448224,1753013476941,-480.0,0.00019506,2]
[373448225,1753013476950,-480.0,0.00019506,2]
[373448226,1753013476959,-480.0,0.00019506,2]
[373448227,1753013476968,-743.85,0.00019506,2]
[373448228,1753013476977,-291.946926,0.00019506,2]
[373448229,1753013476987,-480.0,0.00019506,2]
[373448230,1753013476996,-480.0,0.00019506,2]
[373448231,1753013477005,-480.0,0.00019506,2]
[373448232,1753013477014,-1628.16,0.00019506,2]
[373448233,1753013477024,-480.0,0.00019506,2]
[373448234,1753013477034,-480.0,0.00019506,2]
[373448235,1753013477043,-480.0,0.00019506,2]
[373448236,1753013477053,-948.39,0.00019506,2]
[373448237,1753013477063,-480.0,0.00019506,2]
[373448238,1753013477072,-1034.04,0.00019506,2]
[373448239,1753013477081,-480.0,0.00019506,2]
[373448240,1753013477091,-480.0,0.00019506,2]
[373448241,1753013477100,-480.0,0.00019506,2]
[373448242,1753013477110,-480.0,0.00019506,2]
[373448243,1753013477119,-480.0,0.00019506,2]
[373448244,1753013477129,-480.0,0.00019506,2]